Workbook

Sheet ПО
A1: Публичный отчет о расходовании внебюджетных средств
A2: в АНО ОО Прогимназия № 14 «Журавушка» в 2022 году
C4: тыс. руб.
A5: Наименование показателей | B5: № строки | C5: Фактически профинансировано
A6: Внебюджетные источники финансирования — всего (сумма строк 04—08) | B6: 03 | C6: =C7+C9+C10+C11+C12+C13 -> 53,807
A7: в том числе: | B7: 04 | C7: 0
A8: остаток средств на начало отчетного периода
A9: доходы от реализации платных дополнительных образовательных услуг | B9: 05 | C9: 897
A10: доходы от производственной деятельности | B10: 06 | C10: 13,618
A11: благотворительные средства | B11: 07 | C11: 39,292
A12: другие внебюджетные источники | B12: 08 | C12: 0
A13: Остаток внебюджетных средств на конец отчетного периода | B13: 09 | C13: 0
A15: Наименование показателей | B15: № строки | C15: Расходы, осуществляемые за счет внебюджетных источников финансирования
A16: Расходы — всего (сумма строк 02, 15, 22, 26) | B16: 01 | C16: =C17+C33+C40+C46 -> 40,460
A17: Оплата труда и начисления на оплату труда (сумма строк 03, 13, 14) | B17: 02 | C17: =C18+C31+C32 -> 33,223
A18: заработная плата (сумма строк 04, 05, 10, 12) | B18: 03 | C18: =C19+C21+C28+C30 -> 25,164
A19: в том числе: | B19: 04 | C19: 1,923
A20: руководящих работников
A21: педагогических работников | B21: 05 | C21: =C24+C25+C26 -> 12,660
A22: из них: | B22: 06
A23: учителей
A24: воспитателей, работающих с дошкольными группами | B24: 07 | C24: 7,867
A25: педагогов дополнительного образования | B25: 08 | C25: 814
A26: педагогического персонала, работающего в классах для детей | B26: 09 | C26: 3,979
A27: с ограниченными возможностями здоровья
A28: учебно-вспомогательного персонала | B28: 10 | C28: 6,412
A29: из них учебно-вспомогательного персонала, работающего с дошкольными группами | B29: 11 | C29: =C28 -> 6,412
A30: обслуживающего персонала | B30: 12 | C30: 4,169
A31: начисления на оплату труда | B31: 13 | C31: 7,502
A32: прочие выплаты | B32: 14 | C32: 557
A33: Приобретение услуг (сумма строк 16—21) | B33: 15 | C33: =C34+C35+C36+C38+C39 -> 6,943
A34: Услуги связи СТ. 221 | B34: 16 | C34: 262
A35: Транспортные услуги СТ. 222 | B35: 17 | C35: 468
A36: Коммунальные услуги | B36: 18 | C36: 2,602
A37: Арендная плата за пользование имуществом | B37: 19
A38: Услуги по содержанию имущества ст. 225 | B38: 20 | C38: 3,340
A39: Прочие услуги ст. 226 (в т.ч. услуги нотариуса сч71+суточные сч. 71) | B39: 21 | C39: 271
A40: Социальное обеспечение (сумма строк 23—25) | B40: 22 | C40: =C41+C43+C44 -> 0
A41: пенсии, пособия и выплаты по пенсионному, социальному и медицинскому | B41: 23
A42: страхованию населения
A43: пособия по социальной помощи населению | B43: 24
A44: пенсии, пособия, выплачиваемые организациями сектора государственного | B44: 25
A45: управления
A46: Прочие расходы (ВСЕ ОСТАЛЬНЫЕ НАЛОГИ) ст. 290 (сч. 68 без подох.н-га. Пени по сч. 69, отчисления в профком не с зар. платы, гос. пошлина) | B46: 26 | C46: 294
A47: Поступление нефинансовых активов (сумма строк 28—30) ст.300 | B47: 27 | C47: =C48+C49+C50 -> 13,347
A48: увеличение стоимости основных средств ст.310 | B48: 28
A49: увеличение стоимости нематериальных активов | B49: 29
A50: увеличение стоимости материальных запасов (в т.ч. сч. 71) ст.340 | B50: 30 | C50: 13,347

Sheet доход
A1: Раздел 1
A3: стр.05 | B3: Поступления по кружкам
B4: ч/з кассу | C4: =472877.5 -> 472,877.50
B5: ч/з терминал | C5: 424,232.50
B6: Итого | C6: =SUM(C4:C5) -> 897,110.00
A8: стр.06 | B8: Поступления по осн.
B9: ч/з кассу | C9: =5073668.11+1650769.5 -> 6,724,437.61
B10: ч/з терминал | C10: =4794446.62+1706183.5 -> 6,500,630.12
B11: банк мат.капитал | C11: =415634.89-22213 -> 393,421.89
B12: банк УТТ | C12: 0.00
B13: Итого | C13: =SUM(C9:C12) -> 13,618,489.62
A15: стр.07 | B15: Поступления
B16: ТНГ-Групп | C16: 38,663,963.82
B17: возврат тнг из субсидии | C17: -1,532,048.76
B18: Пожертвования | C18: 1,068,000.00
B19: ОС - ТНГ-групп | C19: 0.00
B20: Безнал (подарки) | C20: 1,092,412.19
B21: Итого | C21: =SUM(C16:C20) -> 39,292,327.25
A23: стр.08 | B23: Внебюджет
B24: сч 69
B25: Итого
B27: Всего | C27: =C6+C13+C21 -> 53,807,926.87
A30: сч.91 | B30: 38,224,327.25
A31: ОС | B31: 0.00
A32: сч. 50 | B32: 7,196,400.11 | C32: ан.сч.50 (62)
A33: пожерт(86.02) | B33: 1,068,000.00
A35: терм (ПОДС) | B35: 6,924,862.62
A36: мат.кап (76.09 УФК) | B36: =C11 -> 393,421.89
A37: утт | B37: =C12 -> 0.00
A38: п/п | B38: 0.00
A39: сч. 51 (ПО ПКО) | B39: =SUM(B35:B38) -> 7,318,284.51
B40: =B30+B31+B32+B33+B39 -> 53,807,011.87 | C40: проверка | D40: =C27-B40 -> 915.00

Sheet расход
B2: РАСХОД 2022 год
A3: строка в УП | B3: статья | C3: сч. | D3: контраг. | E3: сумма
A4: 16 | B4: услуги связи | C4: 60
B5: 221 | D5: татаис. | E5: 249,650.87
D6: таттел. | E6: 12,677.76
E7: =SUM(E5:E6) -> 262,328.63
A9: 17 | B9: транс.усл. | C9: 60 | D9: УТТ | E9: 423,655.87
B10: 222 | D10: ТНГ | E10: 44,835.60
C11: 71
E12: =SUM(E9:E11) -> 468,491.47
A14: 18 | B14: Ком-е усл. | C14: 60 | D14: ПТС | E14: 1,280,362.27
D15: Татэн. | E15: 1,081,095.53
D16: Вод. | E16: 240,289.32
E17: =SUM(E14:E16) -> 2,601,747.12
A19: 20 | B19: Усл.по сод. им-ва 225 | C19: 60
B20: 225.1 уборка сн.и мусора | D20: Гринта | E20: 157,974.67
D21: полигон тбо
D22: Дератиз | E22: 36,542.85
E23: =SUM(E20:E22) -> 194,517.52
B25: 225.2 рем.проч.имущ. | D25: ТНГ | E25: =26144.99+251183.3 -> 277,328.29
B26: ремонт здания | D26: ИП шараф
D27: Стинр
D28: Спецстройинжиринг
D29: Регионстрой
D30: энергосер
E31: =SUM(E25:E30) -> 277,328.29
B32: 225.5 тех.обсл., ОПС,повер. | C32: 60 | D32: ООО Профес.технол.
D33: ОВО | E33: 43,274.00
D34: Геостр. | E34: =707901.18+1762228.8 -> 2,470,129.98
D35: ооо эксперт
D36: ЛДС | E36: 15,620.00
D37: фбу цсм поверка
D38: ЛДС-сервис | E38: 35,500.00
E39: =SUM(E32:E38) -> 2,564,523.98
A40: 20 | E40: =E23+E25+E31+E39 -> 3,313,698.08
A42: 21 | B42: Прочие усл.226 | C42: 60 | D42: банк
C43: 60 | D43: услуги
C44: 60 | D44: Чулпан
C45: 60 | D45: охрана тр | E45: =4530+35788+39900 -> 80,218.00
C46: 71 | D46: Мед осм
C47: 68 | D47: госпош. | E47: 0.00
E48: =SUM(E42:E47) -> 80,218.00
A50: 26 | B50: Прочие расх 290 | C50: 68
C51: 69 | D51: пени и штрафы
C52: 76 | D52: профсоюз | E52: 293,916.37
E53: =SUM(E50:E52) -> 293,916.37
A55: 27 | B55: Поступ.нефин.актив. 300
B56: увел.ОС (310) 28 | C56: 60 | D56: СТИНИР
D57: логистика
E58: =SUM(E56:E57) -> 0.00
B59: увел.ст-ти мат.запас.(340)30 | C59: 10+41 | E59: =5050007+11066004-3861000 -> 12,255,011.00
C60: 71
D61: Подарк (безден.) | E61: 1,092,412.19
E62: =SUM(E59:E61) -> 13,347,423.19
E63: =E58+E62 -> 13,347,423.19
E65: =E7+E12+E17+E40+E48+E53+E63 -> 20,367,822.86
D68: 60 | E68: =E7+E9+E10+#REF!+E17+E40+E42+E43+E44+E45+E58+E59 -> 
E69: =E11+E46+#REF!+E47+E53+E60+E61 -> 
E70: =E68+E69 -> 
